bitfinex-derivatives/quotes_BNBF0:USTF0_20250424
["timestamp","ask_amount","ask_price","bid_price","bid_amount"]
[1745466527904,0.28741921,606.53,605.03,0.58819281]
[1745466528108,0.28741921,606.53,605.04,0.58819281]
[1745466528303,0.28741921,606.53,605.05,0.58819281]
[1745466528504,0.28741921,606.53,605.06,0.58819281]
[1745466528809,0.28741921,606.53,605.07,0.58819281]
[1745466529102,0.28741921,606.53,605.08,0.58819281]
[1745466529304,0.28741921,606.53,605.09,0.58819281]
[1745466529505,0.28741921,606.53,604.93,1.298]
[1745466529709,0.28741921,606.53,604.94,0.58833934]
[1745466530010,0.28741921,606.53,604.95,0.58833934]
[1745466530209,0.28741921,606.53,604.93,1.298]
[1745466530210,0.28741921,606.53,604.96,0.58833934]
[1745466530405,0.28741921,606.53,604.97,0.58833934]
[1745466530711,0.28741921,606.53,604.98,0.58833934]
[1745466531005,0.28741921,606.53,604.99,0.58833934]
[1745466531210,0.28741921,606.53,605.0,0.58833934]
[1745466531405,0.28741921,606.53,605.01,0.58833934]
[1745466531606,0.28741921,606.53,605.02,0.58833934]
[1745466531808,0.28741921,606.53,605.03,0.58833934]
[1745466532006,0.28741921,606.53,605.04,0.58833934]
[1745466532207,0.28741921,606.53,605.05,0.58833934]
[1745466532411,0.28741921,606.53,605.06,0.58833934]
[1745466532613,0.28741921,606.53,605.07,0.58833934]
[1745466532808,1.25418113,607.13,605.08,0.58833934]
[1745466533010,0.28730057,606.52,605.09,0.58833934]
[1745466533311,1.25418113,607.13,605.1,0.58833934]
[1745466533508,1.25418113,607.13,605.11,0.58833934]
[1745466533707,1.25418113,607.13,605.12,0.58833934]
[1745466533912,1.25418113,607.24,605.13,0.58833934]
[1745466534107,0.28729583,607.12,605.14,0.58833934]
[1745466534312,1.25418113,607.24,605.15,0.58833934]
[1745466534514,1.25418113,607.24,605.16,0.58833934]
[1745466534712,1.25418113,607.24,605.17,0.58833934]
[1745466534911,1.25418113,607.24,605.18,0.58833934]
[1745466535117,1.25418113,607.24,604.93,1.298]
[1745466535413,1.25418113,607.24,604.94,0.58922209]
[1745466535609,1.25418113,607.24,604.95,0.58922209]
[1745466535812,0.28730413,607.23,604.96,0.58922209]
[1745466536111,0.28730413,607.23,604.97,0.58922209]
[1745466536309,0.28730413,607.23,604.98,0.58922209]
[1745466536511,0.28730413,607.23,604.99,0.58922209]
[1745466536714,0.28730413,607.23,605.0,0.58922209]
[1745466537816,0.28730413,607.23,605.01,0.58922209]
[1745466538014,0.28730413,607.23,605.02,0.58922209]
[1745466538315,0.28730413,607.23,605.03,0.58922209]
[1745466538515,0.28730413,607.23,605.04,0.58922209]
[1745466538715,1.25418113,607.24,605.05,0.58925794]
[1745466538914,1.25418113,607.24,605.06,0.58925794]
[1745466539117,0.28729108,607.22,605.07,0.58925794]
[1745466539316,0.28729108,607.22,605.08,0.58925794]
[1745466539511,0.28729108,607.22,605.09,0.58925794]
[1745466539713,0.28729108,607.22,605.1,0.58925794]
[1745466539911,0.28729108,607.22,605.11,0.58925794]
[1745466540115,0.28729108,607.22,605.12,0.58925794]
[1745466540312,0.28729108,607.22,605.13,0.58925794]
[1745466540512,0.28729108,607.22,605.14,0.58938054]
[1745466540717,0.28729108,607.22,604.99,1.316]
[1745466540917,0.28729108,607.22,605.0,0.58951448]
[1745466541117,0.28729108,607.22,605.01,0.58951448]
[1745466541317,0.28729108,607.22,605.02,0.58951448]
[1745466541519,0.28729108,607.22,605.03,0.58951448]
[1745466541818,1.25418113,607.22,605.04,0.58951448]
[1745466542015,1.25418113,607.22,605.05,0.58951448]
[1745466542213,1.25418113,607.22,605.06,0.58951448]
[1745466542411,1.25418113,607.22,605.07,0.58951448]
[1745466542612,1.25418113,607.22,605.08,0.58951448]
[1745466542818,1.25418113,607.22,605.09,0.58951448]
[1745466543020,0.28728516,607.21,605.1,0.58951448]
[1745466543216,0.28728516,607.21,605.11,0.58951448]
[1745466543417,0.28728516,607.21,605.12,0.58951448]
[1745466543615,0.28728516,607.21,605.13,0.58932034]
[1745466543918,1.25418113,606.7,605.14,0.58932034]
[1745466544120,1.25418113,606.7,605.15,0.58932034]
[1745466544314,1.25418113,606.7,605.16,0.58932034]
[1745466544514,1.25418113,606.7,605.17,0.58932034]
[1745466544714,1.25418113,606.7,605.18,0.58932034]
[1745466544918,1.25418113,606.7,605.19,0.58932034]
[1745466545218,1.25418113,606.7,605.2,0.58932034]
[1745466545417,1.25418113,606.7,605.01,1.262]
[1745466545612,1.25418113,606.7,605.02,0.58918779]
[1745466545817,1.25418113,606.7,605.03,0.58918779]
[1745466546017,1.25418113,606.7,605.04,0.58918779]
[1745466546218,1.25418113,606.7,605.05,0.58918779]
[1745466546414,1.25418113,606.7,605.06,0.58918779]
[1745466546614,1.25418113,606.7,605.01,1.262]
[1745466546615,1.25418113,606.81,605.07,0.58918779]
[1745466546818,1.25418113,606.81,605.08,0.58918779]
[1745466547020,1.25418113,606.81,605.09,0.58918779]
[1745466547219,1.25418113,606.81,605.1,0.58917689]
[1745466547419,1.25418113,606.81,605.11,0.58917689]
[1745466547620,1.25418113,606.81,605.12,0.58917689]
[1745466547818,1.25418113,606.81,605.13,0.58917689]
[1745466548018,1.25418113,606.81,605.14,0.58917689]
[1745466548215,1.25418113,606.81,605.15,0.58917689]
[1745466548422,1.25418113,606.81,605.16,0.58917689]
[1745466548721,1.25418113,606.81,605.17,0.58917689]
[1745466548917,1.25418113,606.81,605.18,0.58917689]
[1745466549123,1.25418113,606.81,605.19,0.58919751]
[1745466549323,1.25418113,606.78,605.2,0.58919751]
[1745466549521,1.25418113,606.78,605.21,0.58919751]
[1745466549818,1.25418113,606.78,605.01,1.262]
[1745466550025,1.25418113,606.78,605.02,0.58934356]
[1745466550223,1.25418113,606.78,605.03,0.58934356]
[1745466550424,1.25418113,606.78,605.04,0.58934356]
[1745466550724,1.25418113,606.78,605.05,0.58934356]
[1745466551019,1.25418113,606.78,605.06,0.58934356]
[1745466551225,1.25418113,606.78,605.07,0.58934356]
[1745466551524,1.25418113,606.78,605.08,0.58934356]
[1745466551718,1.25418113,606.78,605.09,0.58934356]
[1745466552226,1.25418113,606.78,605.1,1.33]
[1745466552427,1.25418113,606.78,605.11,0.58934356]
[1745466552627,1.25418113,606.7,605.11,0.58934356]
[1745466553326,0.28737293,606.69,605.11,0.58934356]
[1745466553727,1.25418113,606.7,605.11,0.58934356]
[1745466555028,1.25418113,606.43,605.11,0.58934356]
[1745466558025,2.13384984,607.04,605.11,0.58934356]
[1745466558224,0.28739548,606.42,605.11,0.58934356]
[1745466558427,1.25418113,607.25,605.11,0.58934356]
[1745466559829,0.28727685,607.24,605.11,0.58934356]
[1745466560229,0.28727685,607.24,605.12,0.590231]
[1745466560429,0.28727685,607.24,605.13,0.590231]
[1745466560626,0.28727685,607.24,605.14,0.590231]
[1745466560826,0.28727685,607.24,605.15,0.590231]
[1745466561125,0.28727685,607.24,605.16,0.590231]
[1745466561425,0.28727685,607.24,605.17,0.590231]
[1745466561628,0.28727685,607.24,605.18,0.590231]
[1745466561831,0.28727685,607.24,605.19,0.590231]
[1745466562029,0.28727685,607.24,605.2,0.590231]
[1745466562230,0.28727685,607.24,605.21,0.590231]
[1745466562430,0.28727685,607.24,605.22,0.590231]
[1745466562631,0.28727685,607.24,605.23,0.590231]
[1745466562932,1.25418113,607.61,605.24,0.590231]
[1745466563232,1.25418113,607.61,605.25,0.590231]
[1745466563528,1.25418113,607.61,605.26,0.590231]
[1745466563826,1.25418113,607.61,605.27,0.590231]
[1745466564032,0.28720691,607.6,605.28,0.590231]
[1745466564233,0.28720691,607.6,605.29,0.590231]
[1745466564432,0.28720691,607.6,605.3,0.590231]
[1745466564629,0.28720691,607.6,605.31,0.590231]
[1745466564829,0.28720691,607.6,605.32,0.590231]
[1745466565039,0.28720691,607.6,605.33,0.590231]
[1745466565335,0.28720691,607.6,605.34,0.590231]
[1745466565536,0.28720691,607.6,605.35,0.590231]
[1745466565830,1.25418113,607.67,605.2,1.113]
[1745466566035,0.28718677,607.59,605.21,0.5895958]
[1745466566235,1.25418113,607.67,605.22,0.5895958]
[1745466566436,1.25418113,607.67,605.23,0.5895958]
[1745466566636,1.25418113,607.67,605.24,0.5895958]
[1745466566838,1.25418113,607.67,605.25,0.5895958]
[1745466567131,0.2871761,607.66,605.26,0.5895958]
[1745466567336,0.2871761,607.66,605.27,0.5895958]
[1745466567537,0.2871761,607.66,605.28,0.5895958]
[1745466567837,0.2871761,607.66,605.29,0.5895958]
[1745466568038,0.2871761,607.66,605.3,0.5895958]
[1745466568235,0.2871761,607.66,605.31,0.5895958]
[1745466568432,0.2871761,607.66,605.32,0.5895958]
[1745466568433,1.25418113,606.93,605.32,0.5895958]
[1745466568632,1.25418113,606.93,605.33,0.5895958]
[1745466568838,1.25418113,606.93,605.34,0.5895958]
[1745466569038,1.25418113,606.93,605.35,0.5895958]
[1745466569235,1.25418113,606.93,605.36,0.5895958]
[1745466569435,1.25418113,606.93,605.37,0.5895958]
[1745466569635,1.25418113,606.93,605.38,0.5895958]
[1745466569941,0.28722706,606.92,605.39,0.5895958]
[1745466570140,0.28722706,606.92,605.4,0.5895958]
[1745466570438,0.28722706,606.92,605.41,0.5895958]
[1745466570636,0.28722706,606.92,605.42,0.58890309]
[1745466570837,0.28722706,606.92,605.24,1.622]
[1745466571040,0.28722706,606.92,605.25,0.8923248]
[1745466571243,0.28722706,606.92,605.26,0.8923248]
[1745466571441,0.28722706,606.92,605.27,0.8923248]
[1745466571641,1.25418113,606.61,605.28,0.8923248]
[1745466571836,1.25418113,606.61,605.29,0.8923248]
[1745466572038,1.25418113,606.61,605.3,0.8923248]
[1745466572341,1.25418113,606.61,605.31,0.89230156]
[1745466572542,1.25418113,606.61,605.32,0.89230156]
[1745466572741,1.25418113,606.61,605.33,0.89230156]
[1745466572942,1.25418113,606.61,605.34,0.58903121]
[1745466573143,1.25418113,606.61,605.35,0.58903121]
[1745466573443,1.25418113,606.61,605.36,0.58903121]
[1745466573644,1.25418113,606.61,605.24,1.622]
[1745466573645,1.25418113,606.61,605.37,0.58903121]
[1745466573844,1.25418113,606.61,605.38,0.58903121]
[1745466574044,1.25418113,606.61,605.39,0.58903121]
[1745466574244,1.25418113,606.78,605.4,0.58903121]
[1745466574546,1.25418113,606.78,605.41,0.58903121]
[1745466574746,1.25418113,606.78,605.42,0.58903121]
[1745466574940,0.28722588,606.77,605.43,0.58883013]
[1745466575143,0.28722588,606.77,605.44,0.58883013]
[1745466575347,0.28722588,606.77,605.24,1.622]
[1745466575545,0.28722588,606.77,605.25,0.89208419]
[1745466575746,0.28722588,606.77,605.26,0.89208419]
[1745466575940,0.28722588,606.77,605.27,0.89208419]
[1745466576240,0.28722588,606.77,605.28,0.89208419]
[1745466576442,0.28722588,606.77,605.29,0.89208419]
[1745466576647,0.28722588,606.77,605.3,0.89208654]
[1745466576845,0.28722588,606.77,605.31,0.58880635]
[1745466577043,0.28722588,606.77,605.32,0.58880635]
[1745466577267,1.54140701,606.77,605.33,0.58880635]
[1745466577541,1.54140701,606.77,605.24,1.622]
[1745466577542,1.54140701,606.77,605.34,0.58880635]
[1745466577741,1.54140701,606.77,605.35,0.58880635]
[1745466577943,1.54140701,606.77,605.36,0.58880635]
[1745466578145,1.54140701,606.77,605.37,0.58880635]
[1745466578345,1.54140701,606.77,605.38,0.58880635]
[1745466578543,1.54140701,606.77,605.39,0.58880635]
[1745466578745,1.54140701,606.77,605.4,0.58880635]
[1745466578950,1.54140701,606.77,605.41,0.58880635]
[1745466579244,1.54140701,606.77,605.42,0.58880635]
[1745466579547,0.28722588,606.77,605.43,0.58880635]
[1745466579744,0.28722588,606.77,605.44,0.58880635]
[1745466579945,0.28722588,606.77,605.24,1.622]
[1745466580145,0.28722588,606.77,605.25,0.58855807]
[1745466580349,0.28722588,606.77,605.26,0.58855807]
[1745466580648,0.28722588,606.77,605.27,0.58855807]
[1745466580951,1.25418113,607.4,605.28,0.58855807]
[1745466581150,1.25418113,607.4,605.29,0.58855807]
[1745466581449,1.25418113,607.4,605.3,0.58855807]
[1745466581649,2.13384984,608.18,605.24,1.622]
[1745466581650,1.25418113,607.42,605.31,0.58855807]
[1745466581850,1.25418113,607.42,605.32,0.58855807]
[1745466582046,0.28718084,607.41,605.33,0.58855807]
[1745466582250,0.28718084,607.41,605.24,1.622]
[1745466582450,0.28718084,607.41,605.25,0.58861964]
[1745466582651,0.28718084,607.41,605.26,0.58861964]
[1745466582846,0.28718084,607.41,605.27,0.58861964]
[1745466583048,0.28718084,607.41,605.28,0.58861964]
[1745466583251,0.28718084,607.41,605.29,0.58861964]
[1745466583546,0.28718084,607.41,605.3,0.58861964]
[1745466583750,1.25418113,607.29,605.31,0.58861964]
[1745466583952,1.25418113,607.29,605.32,0.58855158]
[1745466584149,1.25418113,607.29,605.33,0.58852514]
[1745466584351,1.25418113,607.29,605.34,0.58852514]
[1745466584552,1.25418113,607.29,605.35,0.58852514]
[1745466584753,1.25418113,607.29,605.36,0.58852514]
[1745466585053,1.25418113,607.29,605.24,1.622]
[1745466585248,1.25418113,607.29,605.25,0.58905935]
[1745466585452,1.25418113,607.29,605.26,0.58905935]
[1745466585652,1.25418113,607.29,605.27,0.58905935]
[1745466585854,1.25418113,607.29,605.28,0.58905935]
[1745466586049,1.25418113,607.29,605.29,0.58905935]
[1745466586249,1.25418113,607.22,605.3,0.58905935]
[1745466586549,1.25418113,607.22,605.31,0.58905935]
[1745466586754,1.25418113,607.22,605.29,1.215]
[1745466587053,1.25418113,607.22,605.3,0.58933878]
[1745466587246,1.25418113,607.22,605.31,0.58933878]
[1745466587450,1.25418113,607.22,605.29,1.215]
[1745466587651,1.25418113,607.22,605.3,0.58955229]
[1745466587850,1.25418113,607.22,605.31,0.58955229]
[1745466588055,0.28723892,607.21,605.29,1.215]
[1745466588256,0.28723892,607.21,605.3,0.58955847]
[1745466588455,0.28723892,607.21,605.29,1.215]
[1745466589553,0.28723892,607.21,605.29,2.361]
[1745466589753,1.25418113,607.37,605.29,2.361]
[1745466590057,0.28725314,607.2,605.29,2.361]
[1745466590252,1.25418113,607.37,605.29,2.361]
[1745466591061,0.28722706,607.36,605.29,2.361]
[1745466591459,0.28722706,607.36,605.3,0.58981416]
[1745466591758,0.28722706,607.36,605.29,2.361]
[1745466591956,0.28722706,607.36,605.3,0.58981039]
[1745466592159,1.25418113,607.35,605.29,2.361]
[1745466594062,0.28722943,607.34,605.29,2.361]
[1745466595861,1.25418113,607.93,605.29,2.361]
[1745466596164,0.2871607,607.33,605.29,2.361]
[1745466596463,1.25418113,607.93,605.29,2.361]
[1745466597059,1.25418113,607.79,605.29,2.361]
[1745466597565,1.25418113,607.79,605.29,4.002]
[1745466598366,1.25418113,607.79,605.3,0.58982267]
[1745466598564,1.25418113,607.79,605.29,4.002]
[1745466598861,1.25418113,607.79,605.29,2.787]
[1745466599066,1.25418113,607.79,605.3,0.58982517]
[1745466599267,1.25418113,607.79,605.29,4.028]
[1745466599461,1.25418113,607.79,605.3,0.58980648]
[1745466599662,1.25418113,607.79,605.31,0.58980648]
[1745466599864,1.25418113,607.79,605.32,0.58980648]
[1745466600063,1.25418113,606.99,605.33,0.58980648]
[1745466600262,1.25418113,606.99,605.34,0.58980648]
[1745466600462,1.25418113,606.99,605.35,0.58980648]
[1745466600662,1.25418113,606.99,605.36,0.58980648]
[1745466600862,1.25418113,606.99,605.37,0.58980648]
[1745466601162,1.25418113,606.99,605.29,4.028]
[1745466601367,1.25418113,606.99,605.3,0.58963145]
[1745466601567,1.25418113,606.99,605.31,0.58963145]
[1745466603068,1.25418113,606.9,605.31,0.58963145]
[1745466603563,1.25418113,606.9,605.32,0.58988828]
[1745466603866,1.25418113,606.9,605.33,0.58988828]
[1745466604060,1.25418113,606.9,605.34,0.58988828]
[1745466604266,1.25418113,606.9,605.35,0.58988828]
[1745466604462,1.25418113,606.9,605.36,0.58988828]
[1745466604666,1.25418113,606.9,605.37,0.58988828]
[1745466604868,1.25418113,606.9,605.3,1.272]
[1745466605068,1.25418113,606.9,605.31,0.58993842]
[1745466605266,1.25418113,606.9,605.32,0.58993842]
[1745466605467,1.25418113,606.9,605.33,0.58993842]
[1745466605667,2.13384984,607.24,605.3,1.272]
[1745466605668,1.25418113,606.93,605.34,0.58993842]
[1745466605868,1.25418113,606.93,605.35,0.58993842]
[1745466606069,0.2872401,606.92,605.36,0.58993842]
[1745466606364,0.2872401,606.92,605.3,1.272]
[1745466606569,0.2872401,606.92,605.31,0.59003004]
[1745466606764,0.2872401,606.92,605.32,0.59003004]
[1745466606967,0.2872401,606.92,605.33,0.59003004]
[1745466607170,0.2872401,606.92,605.34,0.59003004]
[1745466607370,0.2872401,606.92,605.35,0.59003513]
[1745466607571,0.2872401,606.92,605.3,1.272]
[1745466607771,0.2872401,606.92,605.31,0.59014062]
[1745466608071,1.25418113,606.9,605.32,0.59014062]
[1745466608371,1.25418113,606.9,605.33,0.59014062]
[1745466608569,1.25418113,606.9,605.34,0.59014062]
[1745466608768,1.25418113,606.9,605.35,0.59014062]
[1745466608972,1.25418113,606.9,605.36,0.59014062]
[1745466609168,1.25418113,606.9,605.3,1.272]
[1745466609372,1.25418113,606.9,605.31,0.59031808]
[1745466609670,1.25418113,606.9,605.32,0.59031808]
[1745466609872,1.25418113,606.87,605.33,0.59031808]
[1745466610068,1.25418113,606.87,605.34,0.59031808]
[1745466610267,1.25418113,606.87,605.35,0.59031808]
[1745466610569,1.25418113,606.87,605.3,1.272]
[1745466610769,1.25418113,606.87,605.36,1.456]
[1745466611175,0.28725196,606.86,605.36,1.456]
[1745466613278,1.25418113,606.76,605.36,1.456]
[1745466613469,1.25418113,606.76,605.37,0.59085188]
[1745466613675,1.25418113,606.76,605.36,1.456]
[1745466613871,1.25418113,606.76,605.37,0.59081959]
[1745466614073,1.25418113,606.76,605.38,0.59080736]
[1745466614270,1.25418113,606.76,605.39,0.59079082]
[1745466614572,1.25418113,606.76,605.4,0.59082403]
[1745466614771,1.25418113,606.76,605.41,0.59082403]
[1745466614974,1.25418113,606.76,605.42,0.59082403]
[1745466615175,0.28725314,606.75,605.43,0.59082403]
[1745466615375,0.28725314,606.75,605.44,0.59082403]
[1745466615571,0.28725314,606.75,605.45,0.59082403]
[1745466615776,0.28725314,606.75,605.46,0.59082403]
[1745466615974,0.28725314,606.75,605.47,0.59082403]
[1745466616175,0.28725314,606.75,605.48,0.59082403]
[1745466616374,0.28725314,606.75,605.36,1.456]
[1745466616576,0.28725314,606.75,605.37,0.59088839]
[1745466616777,0.28725314,606.75,605.38,0.59088839]
[1745466616972,0.28725314,606.75,605.39,0.59088839]
[1745466617176,0.28725314,606.75,605.4,0.59088839]
[1745466617373,0.28725314,606.75,605.41,0.59088839]
[1745466617577,0.28725314,606.75,605.42,0.59088839]
[1745466617777,0.28725314,606.75,605.43,0.59088839]
[1745466617977,0.28725314,606.75,605.44,0.59088839]
[1745466618178,0.28725314,606.75,605.45,0.59088839]
[1745466618378,0.28725314,606.75,605.46,0.59088839]
[1745466618578,0.28725314,606.75,605.47,0.59088839]
[1745466618779,0.28725314,606.75,605.48,0.59088839]
[1745466619078,0.28725314,606.75,605.36,1.456]
[1745466619279,0.28725314,606.75,605.37,0.59117615]
[1745466619480,0.28725314,606.75,605.38,0.59117615]
[1745466619675,0.28725314,606.75,605.39,0.59117615]
[1745466619880,1.25418113,607.04,605.4,0.59117615]
[1745466620081,1.25418113,607.04,605.41,0.59117615]
[1745466620285,1.25418113,607.04,605.42,0.59117615]
[1745466620582,1.25418113,607.04,605.43,0.59117615]
[1745466620782,1.25418113,607.04,605.44,0.59117615]
[1745466620981,1.25418113,607.04,605.45,0.59117615]
[1745466621178,0.28722351,607.03,605.46,0.59117615]
[1745466621481,0.28722351,607.03,605.47,0.59117615]
[1745466621682,1.25418113,607.01,605.48,0.59117615]
[1745466621982,1.25418113,607.01,605.49,0.59117615]
[1745466622183,1.25418113,607.01,605.5,0.59117615]
[1745466622382,1.25418113,607.01,605.51,0.59143999]
[1745466622582,1.25418113,607.01,605.36,1.456]
[1745466622782,1.25418113,607.01,605.37,0.59145357]
[1745466622977,1.25418113,607.01,605.38,0.59145357]
[1745466623179,0.28723536,607.0,605.39,0.59145357]
[1745466623378,0.28723536,607.0,605.4,0.59145357]
[1745466623679,0.28723536,607.0,605.41,0.59145357]
[1745466623878,0.28723536,607.0,605.42,0.59145357]
[1745466624082,0.28723536,607.0,605.43,0.59145357]
[1745466624279,0.28723536,607.0,605.44,0.59145357]
[1745466624481,0.28723536,607.0,605.36,1.456]
[1745466624482,0.28723536,607.0,605.45,0.59145357]
[1745466624681,0.28723536,607.0,605.46,0.59145357]
[1745466624882,0.28723536,607.0,605.36,1.456]
[1745466625084,0.28723536,607.0,605.37,0.59174615]
[1745466625285,0.28723536,607.0,605.38,0.59174615]
[1745466625486,0.28723536,607.0,605.39,0.59174615]
[1745466625784,0.28723536,607.0,605.4,0.59174615]
[1745466625986,0.28723536,607.0,605.41,0.59174615]
[1745466626184,0.28723536,607.0,605.42,0.59174615]
[1745466626385,0.28723536,607.0,605.43,0.59174615]
[1745466626585,0.28723536,607.0,605.44,0.59174615]
[1745466626783,0.28723536,607.0,605.36,1.456]
[1745466626981,0.28723536,607.0,605.37,0.59170681]
[1745466627178,0.28723536,607.0,605.38,0.59170681]
[1745466627484,0.28723536,607.0,605.39,0.59170681]
[1745466627684,0.28723536,607.0,605.4,0.59170681]
[1745466627884,0.28723536,607.0,605.41,0.59170681]
[1745466628186,0.28723536,607.0,605.42,0.59170681]
[1745466628388,0.28723536,607.0,605.43,0.59170681]
[1745466628580,0.28723536,607.0,605.4,1.269]
[1745466628784,0.28723536,607.0,605.41,0.59173811]
[1745466628982,0.28723536,607.0,605.42,0.59173811]
[1745466629186,0.28723536,607.0,605.43,0.59173811]
[1745466629383,0.28723536,607.0,605.4,1.269]
[1745466629584,0.28723536,607.0,605.41,0.59171741]
[1745466629789,0.28723536,607.0,605.4,1.269]
[1745466631787,1.25418113,606.93,605.4,1.269]
[1745466634391,1.25418113,606.82,605.4,1.269]
[1745466636094,0.28727211,606.81,605.4,1.269]
[1745466636695,0.28727211,606.81,605.41,0.5919421]
[1745466636996,0.28727211,606.81,605.42,0.5919421]
[1745466637294,0.28727211,606.81,605.4,1.269]
[1745466637494,0.28727211,606.81,605.41,0.59191925]
[1745466637698,0.28727211,606.81,605.42,0.59191925]
[1745466637897,1.25418113,607.15,605.43,0.59191925]
[1745466638097,1.25418113,607.15,605.4,1.269]
[1745466638298,1.25418113,607.15,605.41,0.59197926]
[1745466638596,1.25418113,607.15,605.42,0.59205789]
[1745466638798,1.25418113,607.18,605.43,0.59205789]
[1745466638998,1.25418113,607.18,605.4,1.269]
[1745466639199,0.28723062,607.14,605.41,0.59205455]
[1745466639395,0.28723062,607.14,605.42,0.59205455]
[1745466639599,0.28723062,607.14,605.43,0.59205455]
[1745466639798,0.28723062,607.14,605.44,0.59205455]
[1745466640099,0.28723062,607.14,605.45,0.59205455]
[1745466640398,0.28723062,607.14,605.46,0.59205455]
[1745466640598,0.28723062,607.14,605.47,0.59205455]
[1745466640799,1.25418113,607.18,605.48,0.59205455]
[1745466640995,1.25418113,607.18,605.4,1.269]
[1745466641196,1.25418113,607.18,605.41,0.59212821]
[1745466641394,1.25418113,607.18,605.42,0.59212821]
[1745466641599,2.13384984,608.1,605.43,0.59212821]
[1745466641600,1.25418113,607.2,605.43,0.59212821]
[1745466641799,1.25418113,607.2,605.44,0.59212821]
[1745466642001,1.25418113,607.2,605.45,0.59212821]
[1745466642202,0.28719743,607.19,605.46,0.59212821]
[1745466642500,0.28719743,607.19,605.47,0.59212821]
[1745466642706,0.28719743,607.19,605.48,0.59212821]
[1745466642901,0.28719743,607.19,605.49,0.59212821]
[1745466643102,0.28719743,607.19,605.4,1.269]
[1745466643303,0.28719743,607.19,605.41,0.59222928]
[1745466643499,0.28719743,607.19,605.42,0.59222928]
[1745466643697,0.28719743,607.19,605.43,0.59222928]
[1745466643995,1.25418113,607.2,605.44,0.59222928]
[1745466644194,1.25418113,607.19,605.45,0.59222928]
[1745466644401,1.25418113,607.19,605.46,0.59222928]
[1745466644601,1.25418113,607.19,605.47,0.59222928]
[1745466644801,1.25418113,607.19,605.4,1.269]
[1745466647403,1.25418113,606.87,605.29,1.241]
[1745466647702,1.25418113,606.87,605.3,0.5921096]
[1745466647903,1.25418113,606.87,605.31,0.5921096]
[1745466648101,1.25418113,606.87,605.32,0.5921096]
[1745466648301,1.25418113,606.87,605.33,0.5921096]
[1745466648498,1.25418113,606.87,605.34,0.5921096]
[1745466648698,1.25418113,606.87,605.35,0.5921096]
[1745466648997,1.25418113,606.87,605.36,0.5921096]
[1745466649201,1.25418113,606.87,605.29,1.241]
[1745466649403,1.25418113,606.87,605.3,0.59231111]
[1745466649600,1.25418113,606.93,605.31,0.59231111]
[1745466649801,1.25418113,606.93,605.32,0.59231111]
[1745466650000,1.25418113,606.93,605.33,0.59231111]
[1745466650200,1.25418113,606.93,605.34,0.59231111]
[1745466650401,1.25418113,606.93,605.35,0.59231111]
[1745466650600,1.25418113,606.93,605.36,0.59231111]
[1745466650805,1.25418113,606.93,605.37,0.59231111]
[1745466651004,1.25418113,606.93,605.11,1.355]
[1745466651304,1.25418113,606.93,605.12,1.62748468]
[1745466651504,1.25418113,606.93,605.13,0.59248468]
[1745466651808,1.25418113,606.93,605.14,0.59248468]
[1745466652007,1.25418113,606.93,605.15,0.59248468]
[1745466652209,1.25418113,606.86,605.16,0.59248468]
[1745466652411,1.25418113,606.86,605.17,0.59248468]
[1745466652705,1.25418113,606.86,605.18,0.59248468]
[1745466652906,1.25418113,606.86,605.19,0.59248468]
[1745466653209,1.25418113,606.86,605.15,1.005]
[1745466653210,1.25418113,606.86,605.2,0.59248468]
[1745466653406,1.25418113,606.86,605.21,0.59248468]
[1745466653606,1.25418113,606.86,605.22,0.59248468]
[1745466653809,1.25418113,606.86,605.23,0.59248468]
[1745466654010,1.25418113,606.86,605.24,0.59290552]
[1745466654210,0.28731718,606.85,605.25,0.59290552]
[1745466654408,0.28731718,606.85,605.26,0.59290552]
[1745466654608,0.28731718,606.85,605.15,1.005]
[1745466654609,0.28731718,606.85,605.27,0.59290552]
[1745466654807,0.28731718,606.85,605.28,0.59290552]
[1745466655011,0.28731718,606.85,605.29,0.59290552]
[1745466655213,0.28731718,606.85,605.3,0.59290552]
[1745466655214,1.25418113,606.7,605.3,0.59290552]
[1745466655413,1.25418113,606.7,605.31,0.59290552]
[1745466655712,1.25418113,606.7,605.32,0.59290552]
[1745466655911,1.25418113,606.7,605.15,1.005]
[1745466655912,1.25418113,606.7,605.33,0.59290552]
[1745466656114,0.28733022,606.69,605.15,1.005]
[1745466656315,0.28733022,606.69,605.16,0.59274344]
[1745466656514,0.28733022,606.69,605.17,0.59274344]
[1745466656710,0.28733022,606.69,605.18,0.59274344]
[1745466656914,0.28733022,606.69,605.19,0.59274344]
[1745466657114,0.28733022,606.69,605.2,0.59274344]
[1745466657314,0.28733022,606.69,605.21,0.59274344]
[1745466657614,0.28733022,606.69,605.22,0.59274344]
[1745466657809,0.28733022,606.69,605.23,0.59274344]
[1745466658010,0.28733022,606.69,605.15,1.005]
[1745466658214,0.28733022,606.69,605.16,0.5926094]
[1745466658414,0.28733022,606.69,605.17,0.5926094]
[1745466658714,0.28733022,606.69,605.18,0.5926094]
[1745466658912,1.25418113,606.7,605.19,0.5926094]